Cogmind - Beta 10.2 @@@ ROGUE MODE // 2021.07.09 @ 13:55:39 Player: Cassie Rose Result: Destroyed by G-47 Trooper with Particle Gun Performance ------------- Evolutions (0) 0 Regions Visited (4) 800 Robots Destroyed (37) 185 Value Destroyed (734) 734 Prototype IDs (23) 460 Alien Tech Used (0) 0 Bonus (349) 349 TOTAL SCORE: 2528 Bonus ------- Follower Combat Kills 77 Aligned with FarCom 300 Friendly Fire -28 Cogmind --------- Core Integrity 0/250 Matter 292/300 Energy 250/250 System Corruption 4% Temperature Cool (9) Movement Core (700) Ox13 Location -9/Mines Parts ------- > --- POWER (1) -------- Ion Engine > --- PROPULSION (2) --- (None) > --- UTILITY (2) ------ Large Storage Unit Large Storage Unit > --- WEAPON (2) ------- Gatling Laser > --- INVENTORY (16) --- Ion Engine Micro Nuclear Core Flight Unit Flight Unit Flight Unit Flight Unit Flight Unit Medium Storage Unit Medium Storage Unit Sensor Array Light Assault Rifle Peak State ------------ > --- POWER ------------ Ion Engine > --- PROPULSION ------- (None) > --- UTILITY ---------- Large Storage Unit Large Storage Unit > --- WEAPON ----------- Lightning Gun Gatling Laser > --- INVENTORY -------- Ion Engine Micro Nuclear Core Flight Unit Flight Unit Flight Unit Flight Unit Flight Unit Medium Storage Unit Medium Storage Unit Sensor Array [Rating: 12] Favorites ----------- Power Ion Engine Engine Ion Engine Power Core Light Nuclear Core Propulsion Light Treads Treads Light Treads Leg Aluminum Leg Utility Large Storage Unit Device Sensor Array Storage Large Storage Unit Weapon Light Assault Rifle Energy Gun Gatling Laser Ballistic Gun Light Assault Rifle Launcher Grenade Launcher Build | -11 -10 -10 -10 -9 ------- Run | Scr Mat Min Exi Min Slots Evolved . | . . . . . Power . | . . . . . Propulsion . | . . . . . Utility . | . . . . . Weapon . | . . . . . Parts Attached 19 | 6 6 4 . 3 Power 5 | 1 1 2 . 1 Engine 4 | 1 1 1 . 1 Core 1 | . . 1 . . Reactor . | . . . . . Propulsion 4 | 2 1 1 . . Treads 3 | 2 1 . . . Leg 1 | . . 1 . . Wheel . | . . . . . Hover . | . . . . . Flight . | . . . . . Utility 4 | 1 3 . . . Device 1 | . 1 . . . Storage 3 | 1 2 . . . Processor . | . . . . . Hackware . | . . . . . Protection . | . . . . . Artifact . | . . . . . Weapon 6 | 2 1 1 . 2 Energy Gun 2 | . . . . 2 Energy Cannon . | . . . . . Ballistic Gun 3 | 2 . 1 . . Ballistic Cannon . | . . . . . Launcher 1 | . 1 . . . Special Weapon . | . . . . . Impact Weapon . | . . . . . Slashing Weapon . | . . . . . Piercing Weapon . | . . . . . Special Melee Weapon . | . . . . . Unidentified Prototypes . | . . . . . Parts Lost 10 | . 1 4 . 5 Power 2 | . . 1 . 1 Propulsion 3 | . . 2 . 1 Utility . | . . . . . Weapon 5 | . 1 1 . 3 Highest Loss Streak 3 | . 1 3 . 3 Average Slot Usage (%) 79 | . 96 85 85 64 Engine 8 | . 14 6 . 11 Core 4 | . . 7 14 1 Treads 7 | . 28 3 . . Leg 5 | . . 11 14 1 Device 1 | . 4 . . . Storage 26 | . 21 28 28 28 Energy Gun 6 | . . . . 16 Ballistic Gun 11 | . 25 13 14 1 Launcher 5 | . . 14 14 1 Naked Turns . | . . . . . Heaviest Build 45 | 11 41 41 41 45 Greatest Support 40 | 40 40 40 10 10 Greatest Overweight (x) 14 | . 1 13 4 14 Average Overweight (x) 3 | . . 3 4 10 Largest Inventory Capacity 16 | 6 16 16 16 16 Average Capacity 14 | 5 11 16 16 16 Most Carried 13 | 3 12 12 13 13 Average Carried 10 | . 8 10 11 10 Final Capacity 16 | 6 16 16 16 16 Final Carried 13 | 1 11 10 13 11 Class Distribution -------------------- 100% | Mutant Dominant Class ---------------- Mutant | -10/Materials Mutant | -10/Mines Mutant | -10/Exiles Mutant | -9/Mines Resources | -11 -10 -10 -10 -9 ----------- Run | Scr Mat Min Exi Min Matter Collected 814 | 152 288 172 . 202 Remotely . | . . . . . Salvage Created 895 | . 601 126 . 168 Parts 82 | . 44 17 . 21 Haulers Intercepted 2 | . 2 . . . Recyclers Shooed . | . . . . . Parts Field Recycled . | . . . . . Retrieved Matter . | . . . . . Parts Self-Destructed . | . . . . . Prevented . | . . . . . Kills | -11 -10 -10 -10 -9 ------- Run | Scr Mat Min Exi Min Combat Hostiles Destroyed 28 | . 14 6 . 8 Guns 17 | . 14 1 . 2 AOE 11 | . . 5 . 6 Classes Destroyed 8 | . 6 1 . 1 Worker 3 | . 1 . . 2 Builder 1 | . . 1 . . Tunneler 1 | . . . . 1 Hauler 2 | . 2 . . . Operator 1 | . 1 . . . Watcher 1 | . 1 . . . Swarmer 13 | . 6 3 . 4 Grunt 15 | . 8 3 . 4 Best Kill Streak 9 | . 4 3 . 9 Combat Bots Only 6 | . 4 3 . 6 Max Kills in Single Turn 4 | . 2 3 . 4 Gunslinging 1 | . 1 . . . Exploded 4 | . . 3 . 4 Melee . | . . . . . Uniques/NPCs Destroyed . | . . . . . Combat | -11 -10 -10 -10 -9 -------- Run | Scr Mat Min Exi Min Damage Taken 1373 | . 570 233 . 570 Core 262 | . 44 64 . 154 Absorbed by Shields . | . . . . . Core Remaining (%) 100 | 100 . . . . Volleys Fired 79 | . 58 8 . 13 Largest 2 | . 2 2 . 2 Hottest 135 | . 40 50 . 135 Shots Fired 143 | . 112 15 . 16 Gun 129 | . 112 7 . 10 Cannon . | . . . . . Launcher 14 | . . 8 . 6 Special . | . . . . . Kinetic 120 | . 112 7 . 1 Thermal 7 | . . . . 7 Explosive 14 | . . 8 . 6 Electromagnetic 2 | . . . . 2 Robot Hit Streak 14 | . 8 14 . 8 Robot Miss Streak 4 | . 3 1 . 4 Penetration Max . | . . . . . Secondary Targets 3 | . 2 . . 1 Max Gunslinging Chain 1 | . 1 . . 1 Shots Hit Robots 100 | . 77 11 . 12 Core Hits 68 | . 38 12 . 18 Critical Hits 1 | . 1 . . . Critical Kills . | . . . . . Critical Parts Destroyed 1 | . 1 . . . Melee Attacks . | . . . . . Impact . | . . . . . Slashing . | . . . . . Piercing . | . . . . . Sneak Attacks . | . . . . . Combat Hostiles . | . . . . . Follow-up Attacks . | . . . . . Damage Inflicted 1645 | . 649 411 . 585 Guns 780 | . 649 39 . 92 Cannons . | . . . . . Explosions 865 | . . 372 . 493 Melee . | . . . . . Ramming . | . . . . . Kinetic 694 | . 649 39 . 6 Thermal 66 | . . . . 66 Explosive 865 | . . 372 . 493 Electromagnetic 20 | . . . . 20 Impact . | . . . . . Slashing . | . . . . . Piercing . | . . . . . Highest Corruption 4 | . 4 4 4 4 Average Corruption 3 | . 3 4 4 4 Corruption Purged . | . . . . . Effects 109 | . 22 15 24 48 Message Errors 21 | . 3 2 8 8 Matter Fused 27 | . 5 6 4 12 Heat Flow Errors 16 | . 1 2 1 12 Energy Discharges 19 | . 4 4 5 6 Data Loss (minor) 22 | . 5 1 6 10 Targeting Errors 3 | . 3 . . . Weapon Failures 1 | . 1 . . . Overload Shots . | . . . . . Overflow Damage 27 | . . 6 . 21 Projectiles . | . . . . . Explosions 27 | . . 6 . 21 Melee . | . . . . . Knockbacks . | . . . . . Impact . | . . . . . Kinetic . | . . . . . Secondary . | . . . . . Self-Inflicted Damage 186 | . . 115 . 71 Shots 6 | . . 4 . 2 Rammed 1 | . 1 . . . Targets Rammed 1 | . 1 . . . Kicked . | . . . . . Crushed . | . . . . . Highest Temperature 375 | . 142 239 138 375 Average Temperature 98 | . 24 84 76 129 Received Heat Transfer 393 | . 207 60 . 126 Siege Activations . | . . . . . Robots Corrupted . | . . . . . Combat Hostiles . | . . . . . Parts Fried . | . . . . . Impact Corruptions . | . . . . . Robots Melted . | . . . . . Combat Hostiles . | . . . . . Parts Melted . | . . . . . Heat Transferred 150 | . . . . 150 Parts Sabotaged . | . . . . . Parts Stolen . | . . . . . Parts Stripped . | . . . . . Power Chain Reactions . | . . . . . Missiles Intercepted . | . . . . . Alert | -11 -10 -10 -10 -9 ------- Run | Scr Mat Min Exi Min Peak Influence 251 | . 232 233 . 251 Initial 48 | . . 48 . . Average 65 | . 86 105 . 39 Maximum Alert Level 1 | . 1 1 . 1 Low Security (%) 94 | 100 98 96 . 90 Level 1 5 | . 1 3 . 9 Level 2 . | . . . . . Level 3 . | . . . . . Level 4 . | . . . . . Level 5 . | . . . . . High Security . | . . . . . Max Security . | . . . . . Squads Dispatched 3 | . 3 . . . Investigation . | . . . . . Extermination . | . . . . . Reinforcement 3 | . 3 . . . Assault . | . . . . . Garrison . | . . . . . Intercept . | . . . . . Construction Impeded . | . . . . . Haulers Reinforced . | . . . . . Stealth | -11 -10 -10 -10 -9 --------- Run | Scr Mat Min Exi Min Distress Signals 1 | . 1 . . . Communications Jammed . | . . . . . Distress Signals . | . . . . . Times Spotted 46 | . 27 7 . 12 Peak Tracking Total 5 | . 5 4 . 4 Tactical Retreats 2 | . . 1 . 1 Traps | -11 -10 -10 -10 -9 ------- Run | Scr Mat Min Exi Min Traps Triggered 5 | . 5 . . . Indirectly . | . . . . . Trap Hack Attempts . | . . . . . Triggered . | . . . . . Disarmed . | . . . . . Reprogrammed . | . . . . . Reused . | . . . . . Traps Extracted . | . . . . . Installed . | . . . . . Triggered . | . . . . . Machines | -11 -10 -10 -10 -9 ---------- Run | Scr Mat Min Exi Min Machines Disabled 2 | . . 1 . 1 Max in Single Turn 1 | . . 1 . 1 Machines Sabotaged . | . . . . . Garrisons Compromised . | . . . . . Overloaded Fab Kills . | . . . . . Fab Network Shutdowns . | . . . . . Hacking | -11 -10 -10 -10 -9 --------- Run | Scr Mat Min Exi Min Machines Accessed 9 | . 5 . 3 1 Terminals 5 | . 5 . . . Fabricators . | . . . . . Repair Stations . | . . . . . Recycling Units . | . . . . . Scanalyzers . | . . . . . Garrison Access . | . . . . . Total Hacks 34 | . 15 . 18 1 Successful 25 | . 6 . 18 1 Failed 9 | . 9 . . . Catastrophic . | . . . . . Database Lockouts . | . . . . . Manual 16 | . 15 . 1 . Terminals 15 | . 15 . . . Fabricators . | . . . . . Repair Stations . | . . . . . Recycling Units . | . . . . . Scanalyzers . | . . . . . Garrison Access . | . . . . . Terminal Hacks 19 | . . . 18 1 Record 17 | . . . 17 . Open Door 1 | . . . . 1 EX-Prototype ID Bank 1 | . . . 1 . Fabricator Hacks . | . . . . . Repair Station Hacks . | . . . . . Recycling Unit Hacks . | . . . . . Scanalyzer . | . . . . . Garrison Access Hacks . | . . . . . Unauthorized Hacks 6 | . 6 . . . Terminals 6 | . 6 . . . Assimilate 2 | . 2 . . . Botnet 3 | . 3 . . . Operators 1 | . 1 . . . Fabricators . | . . . . . Repair Stations . | . . . . . Recycling Units . | . . . . . Scanalyzers . | . . . . . Garrison Access . | . . . . . Data Cores Recovered . | . . . . . Used . | . . . . . Hacking Detections 5 | . 5 . . . Full Trace Events 2 | . 2 . . . Feedback Events . | . . . . . Feedback Blocked . | . . . . . Robot Schematics Acquired . | . . . . . Robots Built . | . . . . . Matter . | . . . . . Time . | . . . . . Total Robot Build Rating . | . . . . . Part Schematics Acquired . | . . . . . Parts Built . | . . . . . Matter . | . . . . . Time . | . . . . . Total Part Build Rating . | . . . . . Parts Repaired . | . . . . . Time . | . . . . . Parts Recycled . | . . . . . Recycled Matter . | . . . . . Retrieved Matter . | . . . . . Retrieved Components . | . . . . . Parts Scanalyzed . | . . . . . Part Schematics Acquired . | . . . . . Parts Damaged . | . . . . . Bothacking | -11 -10 -10 -10 -9 ------------ Run | Scr Mat Min Exi Min Used RIF Installer . | . . . . . Robots Hacked . | . . . . . Non-combat . | . . . . . Combat . | . . . . . Robot Hacks Applied . | . . . . . Relay Couplers Released . | . . . . . Robots Rewired . | . . . . . Allies Hacked . | . . . . . Hacks Repelled . | . . . . . Allies | -11 -10 -10 -10 -9 -------- Run | Scr Mat Min Exi Min Total Allies 4 | . 1 3 . . Largest Group 3 | . 1 3 3 2 Highest-Rated Group 40 | . 10 40 40 32 Highest-Rated Ally 16 | . 10 16 16 16 Total Orders . | . . . . . Ally Attacks 28 | . . 1 . 27 Total Damage 514 | . . 10 . 504 Kills 8 | . . 1 . 7 Allies Corrupted . | . . . . . Allies Melted . | . . . . . Turrets Deployed 3 | . . . . 3 Intel | -11 -10 -10 -10 -9 ------- Run | Scr Mat Min Exi Min Robot Analysis Total . | . . . . . Derelict Logs Recovered 3 | . . 1 . 2 Drone Launches . | . . . . . Drone Recoveries . | . . . . . Exploration | -11 -10 -10 -10 -9 ------------- Run | Scr Mat Min Exi Min Turns Passed 5697 | 69 1406 828 1244 2150 Spaces Moved 2029 | 40 759 335 518 377 Core 262 | 6 . 3 . 253 Treads 840 | 34 759 47 . . Legs 927 | . . 285 518 124 Wheels . | . . . . . Hover . | . . . . . Flight . | . . . . . Fastest Speed 50 | 50 160 160 240 210 Average Speed 265 | 143 160 234 240 554 Slowest Speed 750 | 160 180 700 240 750 Overloaded Moves . | . . . . . Propulsion Burnouts . | . . . . . Robots Hopped . | . . . . . Cave-ins Triggered . | . . . . . Exploration Rate (%) 66 | 3 99 73 90 68 Regions Visited 4 Branch Regions 3 Pre-discovered Areas . | . . . . . Known Exits Taken . | . . . . . Unknown Exits Taken 4 | 1 1 1 1 . Scrap Searched 3 | . . 2 . 1 Spaces Dug . | . . . . . Terrain Destroyed 72 | . . 39 . 33 Melee . | . . . . . Projectile . | . . . . . AOE 72 | . . 39 . 33 Terrain Rammed . | . . . . . Walls Destroyed . | . . . . . Machines Disabled . | . . . . . Actions | -11 -10 -10 -10 -9 --------- Run | Scr Mat Min Exi Min Total 2219 | 52 859 365 520 423 Wait 53 | . 17 15 . 21 Move 2025 | 39 758 334 517 377 Hop . | . . . . . Pick Up 33 | 7 15 3 3 5 Fast Attach . | . . . . . Attach 14 | 6 2 3 . 3 Detach . | . . . . . Swap 5 | . 4 1 . . Drop 9 | . 4 1 . 4 Fire 79 | . 58 8 . 13 Melee . | . . . . . Ram . | . . . . . Kick . | . . . . . Crush 1 | . 1 . . . Escape Stasis . | . . . . . Rewire . | . . . . . Trap . | . . . . . Miscellaneous . | . . . . . Route ------- -11/Scrapyard -10/Materials (discovered 5 exits: [*Mat x3] / [*Min x2]) -10/Mines (discovered 2 exits: [*Mat] / *Exi) -10/Exiles (discovered 2 exits: *Min x2) -9/Mines History --------- Turn | Location | Event 3 | -11/Scrapyard | Discovered new exit (range 16) 70 | -11/Scrapyard | Entered Materials 317 | -10/Materials | Build established: Mutant 417 | -10/Materials | Discovered new exit (range 7) 731 | -10/Materials | Discovered new exit (range 5) 987 | -10/Materials | Discovered new exit (range 11) 1015 | -10/Materials | Discovered new exit (range 8) 1373 | -10/Materials | Discovered new exit (range 9) 1476 | -10/Materials | Entered Mines 1612 | -10/Mines | Lost 3 parts (1p2n) 1663 | -10/Mines | Discovered new exit (range 6) 1685 | -10/Mines | Assisted by bots powering up and referring to "LRC-V3" 2288 | -10/Mines | Deemed a non-threat by the Exiles lab entrance 2290 | -10/Mines | Discovered new exit (range 5) 2304 | -10/Mines | Entered Exiles 2304 | -10/Exiles | Accompanied by 3 allies 2340 | -10/Exiles | Discovered new exit (range 14) 2381 | -10/Exiles | Met 8R-AWN 2412 | -10/Exiles | Met EX-HEX 2508 | -10/Exiles | Met EX-DEC 2650 | -10/Exiles | Discovered new exit (range 14) 2820 | -10/Exiles | Met EX-BIN 2847 | -10/Exiles | Aligned with FarCom system 2849 | -10/Exiles | Given EX-Vault access code 2974 | -10/Exiles | Opened EX-Vault 3003 | -10/Exiles | Found Deploy-a-Sentry 3006 | -10/Exiles | Found Deploy-a-Sentry 3010 | -10/Exiles | Found Deploy-a-Sentry 3061 | -10/Exiles | Warned to stay clear of 0b10 Research branches 3194 | -10/Exiles | Visited The Gauntlet 3548 | -10/Exiles | Left Exiles lab with Deploy-a-Sentry 3548 | -10/Exiles | Entered Mines 3548 | -9/Mines | Accompanied by 3 allies 3810 | -9/Mines | Core integrity fell below 50% 3820 | -9/Mines | DAS Turret deployed 3843 | -9/Mines | Learned Materials stockpile data 3851 | -9/Mines | DAS Turret deployed 3858 | -9/Mines | DAS Turret deployed 3869 | -9/Mines | Met a Derelict who couldn't figure out how to use a Trap Extractor 3870 | -9/Mines | Core integrity fell below 20% 3880 | -9/Mines | Lost 3 parts (1p1n1w) 5261 | -9/Mines | Learned Materials emergency access door positions 5698 | -9/Mines | Destroyed by G-47 Trooper with Particle Gun Last Messages --------------- 05061_ System corrupted: Component data lost. 05080_ IM|XZ,MLX9M =1ZOQG5IXLQ 05103_ System corrupted: Heat flow error (+238). 05136_ System corrupted: Heat flow error (+186). 05163_ System corrupted: Matter fused (-9). 05238_ System corrupted: Matter fused (-8). 05261_ Acquired derelict log, extracted data. Data stored: Materials emergency access points. 05285_ System corrupted: Heat flow error (+114). 05305_ System corrupted: Energy discharge (-77). 05321_ System corrupted: Matter fused (-7). 05366_ Searching scrap... 05366_ Found Tractor Beam. 05366_ Found 28 Matter. 05367_ Acquired 28 matter. 05393_ System corrupted: Matter fused (-5). 05497_ System corrupted: Energy discharge (-50). 05565_ System corrupted: Component data lost. 05672_ GXBQ UHIEL/IU7RCYLK W